[Event "45th FIDE Olympiad 2024"]
[Site "Budapest"]
[Date "2024.09.11"]
[Round "1.44"]
[White "Gumularz, Szymon"]
[Black "Hamid, Mohammed"]
[Result "1-0"]
[ECO "E90"]
[WhiteElo "2571"]
[BlackElo "2090"]
[Annotator "TA"]
[PlyCount "51"]
[EventDate "2024.09.05"]
[EventType "team-tourn"]
[EventCountry "HUN"]
[SourceTitle "playchess.com"]
[Source "ChessBase"]
[SourceQuality "1"]
[WhiteTeam "Poland"]
[BlackTeam "Sudan"]
[WhiteTeamCountry "POL"]
[BlackTeamCountry "SUD"]
[TimeControl "40/5400+30:1800+30"]

{[%evp 20,51,84,88,85,80,100,97,165,168,231,256,254,198,209,191,182,183,186,186,256,262,364,377,512,487,489,500,715,718,1006,1034,972,939]} 1. c4 {[%emt 0:00:03]} g6 {[%emt 0:00:15]} 2. d4 {[%emt 0:00:06]} Bg7 {[%emt 0:00:23]} 3. Nc3 {[%emt 0:00:11]} c5 {[%emt 0:01:40]} 4. d5 {[%emt 0:00:06]} d6 {[%emt 0:00:11]} 5. e4 {[%emt 0:00:07]} Nf6 {[%emt 0:02:24]} 6. h3 {[%emt 0:00:22]} O-O {[%emt 0:06:17]} 7. Nf3 {[%emt 0:00:07]} Na6 {[%emt 0:02:14]} 8. Bd3 {[%emt 0:00:29]} Nc7 {[%emt 0:02:38]} 9. O-O {[%emt 0:00:39]} a6 {[%emt 0:09:56]} 10. a4 {[%emt 0:02:50][%cal Ba2a4,Ba4a5][%mdl 32]} Rb8 {[%emt 0:06:15]} 11. Re1 {[%emt 0:03:35]} Nd7 {[%emt 0:06:56]} 12. Bf4 {[%emt 0:01:24] White is more active.} Ne5 {[%emt 0:16:39]} 13. Nxe5 {[%emt 0:00:34]} dxe5 {[%emt 0:05:21]} (13... Bxe5 $16 {might work better.} 14. Bxe5 dxe5) 14. Be3 $18 {[%emt 0:00:21][%cal Oa4a5]} Qd6 {[%emt 0:00:19]} (14... a5 $142 15. Bxc5 b6) 15. a5 {[%emt 0:00:52]} Bd7 {[%emt 0:02:06]} 16. Na4 {[%emt 0:12:45]} Bxa4 {[%emt 0:00:49]} 17. Qxa4 {[%emt 0:00:04]} Rfc8 {[%emt 0:04:27] Black is weak on the light squares} 18. Red1 {[%emt 0:12:08][%cal Ob2b4]} Ne8 {[%emt 0:02:39][%cal Bc7e8,Be8f6,Bf6d7,Bd7f6,Bf6e4][%mdl 32]} 19. b4 {[%emt 0:03:28]} cxb4 {[%emt 0:05:23]} (19... Nf6 {is a better defense.} 20. Bxc5 (20. bxc5 Rxc5 21. Bxc5 Qxc5 $18) 20... Rxc5) 20. Rac1 {[%emt 0:07:58]} Nf6 {[%emt 0:10:48]} 21. c5 {[%emt 0:00:25]} Qd7 {[%emt 0:00:16]} 22. Qxd7 {[%emt 0:03:27] White is clearly winning.} Nxd7 {[%emt 0:00:11]} 23. c6 {[%emt 0:00:04]} bxc6 {[%emt 0:08:44]} 24. dxc6 {[%emt 0:00:10][%cal Bd5c6,Bc6c7][%mdl 32]} Nf6 {[%emt 0:00:15]} 25. Bxa6 {[%emt 0:00:11]} Nxe4 {[%emt 0:04:56]} 26. c7 {[%emt 0:00:14] White took control after the opening.   Weighted Error Value: White=0.04 (flawless) /Black=0.51.  Mistake:       	---       	Black=3      Inaccurate:     	---       	Black=4      OK:         	White=4     	Black=4      Best:        	White=5     	---} 1-0

[Event "45th FIDE Olympiad 2024"]
[Site "Budapest"]
[Date "2024.09.11"]
[Round "1.44"]
[White "Sultan, Ibrahim"]
[Black "Tracey, Shaun M"]
[Result "1-0"]
[ECO "A80"]
[WhiteElo "2206"]
[BlackElo "1684"]
[Annotator "ChessBase"]
[PlyCount "47"]
[EventDate "2024.09.05"]
[EventType "team-tourn"]
[EventCountry "HUN"]
[SourceTitle "playchess.com"]
[Source "ChessBase"]
[SourceQuality "1"]
[WhiteTeam "United Arab Emirates"]
[BlackTeam "Cayman Islands"]
[WhiteTeamCountry "UAE"]
[BlackTeamCountry "CAY"]
[TimeControl "40/5400+30:1800+30"]

1. d4 e6 2. Nf3 f5 3. Bf4 Nf6 4. e3 Be7 5. Be2 b6 6. O-O Bb7 7. c4 O-O 8. h3 Ne4 9. Nfd2 Nxd2 10. Qxd2 d6 11. Nc3 Nd7 12. b4 Kh8 13. Bh2 Bf6 14. Rab1 Qe7 15. c5 a6 16. Rfc1 Rfc8 17. Bd3 Bg5 18. Ne2 Be4 19. Bxe4 fxe4 20. cxd6 cxd6 21. Rxc8+ Rxc8 22. Rc1 Rf8 23. Rc7 Qf7 24. Bg3 1-0

[Event "45th FIDE Olympiad 2024"]
[Site "Budapest"]
[Date "2024.09.11"]
[Round "1.45"]
[White "Suleymanli, Aydin"]
[Black "Ahmad, Al Khatib"]
[Result "1-0"]
[ECO "C76"]
[WhiteElo "2632"]
[BlackElo "2302"]
[Annotator "TA"]
[PlyCount "91"]
[EventDate "2024.09.05"]
[EventType "team-tourn"]
[EventCountry "HUN"]
[SourceTitle "playchess.com"]
[Source "ChessBase"]
[SourceQuality "1"]
[WhiteTeam "Azerbaijan"]
[BlackTeam "Jordan"]
[WhiteTeamCountry "AZE"]
[BlackTeamCountry "JOR"]
[TimeControl "40/5400+30:1800+30"]

{[%evp 14,91,33,26,30,36,27,26,42,35,33,30,37,45,34,22,38,41,35,17,29,20,31,-6,0,0,10,1,85,66,57,71,89,74,55,68,105,95,89,87,126,143,163,151,176,166,159,155,159,127,137,105,92,0,109,113,140,120,122,91,149,146,193,194,350,360,370,358,361,235,1115,1115,29958,29961,29961,6152,29996,29997,29997,29998]} 1. e4 {[%emt 0:00:03]} e5 {[%emt 0:01:09]} 2. Nf3 {[%emt 0:00:09]} Nc6 {[%emt 0:00:21]} 3. Bb5 {[%emt 0:00:21]} a6 {[%emt 0:00:41]} 4. Ba4 {[%emt 0:00:05]} d6 {[%emt 0:01:19]} 5. O-O {[%emt 0:00:17]} Bd7 {[%emt 0:01:22]} 6. c3 {[%emt 0:00:27]} g6 {[%emt 0:00:57]} 7. d4 {[%emt 0:00:18]} Bg7 {[%emt 0:00:22]} 8. h3 {[%emt 0:00:38]} b5 {[%emt 0:04:06]} 9. Bc2 {[%emt 0:02:41]} Nf6 {[%emt 0:00:19]} 10. Re1 {[%emt 0:06:40]} O-O {[%emt 0:01:04] White has an edge.} 11. Nbd2 {[%emt 0:00:34]} Re8 {[%emt 0:01:11]} 12. Nf1 {[%emt 0:03:58]} Nh5 {[%emt 0:05:48]} 13. Bg5 {[%emt 0:03:53]} Qc8 {[%emt 0:09:49]} 14. Qd2 {[%emt 0:03:51]} Na5 {[%emt 0:05:51]} 15. b3 {[%emt 0:03:03]} c5 {[%emt 0:02:14]} 16. dxe5 {[%emt 0:07:14]} dxe5 {[%emt 0:01:26]} 17. Rad1 {[%emt 0:02:19]} Be6 {[%emt 0:06:30]} 18. N1h2 {[%emt 0:18:09]} (18. Ne3 $5) 18... Nc6 {[%emt 0:10:57]} 19. Be3 {[%emt 0:05:00]} Bf8 {[%emt 0:07:47]} 20. Ng5 {[%emt 0:01:28]} a5 {[%emt 0:21:26]} (20... Rd8 $11 21. Qc1 Bd7) 21. Nxe6 {[%emt 0:02:17]} Qxe6 {[%emt 0:01:17]} 22. Bd3 {[%emt 0:01:06]} c4 {[%emt 0:02:52]} 23. bxc4 {[%emt 0:00:55]} bxc4 {[%emt 0:00:19][%cal Oe8d8] [#] White must now prevent ...Red8!} 24. Bf1 {[%emt 0:00:18] A strong pair of Bishops.} a4 {[%emt 0:05:49][%cal Oh5f4,Ba5a4,Ba4a3][%mdl 32]} 25. Nf3 {[%emt 0:00:47]} Na5 {[%emt 0:02:20]} 26. Qc2 {[%emt 0:00:19]} a3 {[%emt 0:02:21]} 27. Rd5 {[%emt 0:00:13]} Nf6 {[%emt 0:03:05][%cal Bh5f6,Bf6d7,Bd7c5][%mdl 32]} 28. Rxe5 {[%emt 0:00:07]} Qc6 {[%emt 0:00:47]} 29. Nd4 {[%emt 0:05:36]} Qc7 {[%emt 0:00:44]} 30. Rxe8 {[%emt 0:00:11]} Rxe8 {[%emt 0:00:08]} 31. Bg5 {[%emt 0:01:22]} Nd7 {[%emt 0:00:40]} 32. Rb1 {[%emt 0:00:10]} Nc5 {[%emt 0:00:42]} 33. Re1 {[%emt 0:02:13]} (33. g3 $16) 33... Rb8 {[%emt 0:00:28]} (33... Nd7 $1 $11) 34. Bc1 $16 {[%emt 0:02:54][%cal Bg5c1,Bc1e3,Be3d4][%mdl 32]} Ncb3 {[%emt 0:00:29]} 35. Be3 {[%emt 0:00:06]} (35. axb3 cxb3 36. Qb1 Qxc3 37. Bxa3 Bxa3 $17 (37... Qxd4 38. Bb2 $11)) 35... Nxd4 {[%emt 0:00:46]} 36. Bxd4 {[%emt 0:02:40]} Rb2 {[%emt 0:00:14]} (36... Nc6 $142 37. Bxc4 Nxd4 38. cxd4 Rb4) 37. Qa4 {[%emt 0:00:04]} Rxa2 {[%emt 0:00:20]} (37... Nc6 $16 38. Qxc4 (38. Bxc4 Nxd4 39. cxd4 Rb4 $17) 38... Qd7) 38. e5 $18 {[%emt 0:00:40]} Rb2 $2 {[%emt 0:00:38]} (38... Nb3) 39. e6 {[%emt 0:01:01]} fxe6 {[%emt 0:00:46]} 40. Rxe6 {[%emt 0:00:05][%cal Oa4a5] [#] Qxa5! is the strong threat.} Rb1 {[%emt 0:00:35]} 41. Re8 $40 {[%emt 0:51:24][%cal Be6e8,Be8a8,Ba8a6][%mdl 160] White wants a kill.} Kf7 $2 {[%emt 0:22:08]} (41... Nb3 42. Be3 (42. Qxa3 Qf7 $11) 42... Rxf1+ 43. Kxf1 a2) 42. Ra8 {[%emt 0:00:00] White threatens Qe8+ and mate.} Be7 {[%emt 0:07:38]} 43. Qe8+ {[%emt 0:00:00]} Ke6 {[%emt 0:00:14][%cal Bf7e6,Be6f5,Bf5g5][%mdl 32]} 44. Ra6+ {[%emt 0:00:00]} Kf5 {[%emt 0:00:53]} 45. Qf7+ {[%emt 0:00:00]} Kg5 {[%emt 0:00:26]} 46. Be3+ {[%emt 0:00:00] Weighted Error Value: White=0.16 (very precise) /Black=0.50.  Mistake:       	White=1     	Black=6      Inaccurate:     	White=2     	Black=3      OK:         	White=11    	Black=10     Best:        	White=5     	Black=2} 1-0

[Event "45th FIDE Olympiad 2024"]
[Site "Budapest"]
[Date "2024.09.11"]
[Round "1.45"]
[White "Duran Vega, Sergio"]
[Black "Solomon, Joshua"]
[Result "1-0"]
[ECO "A13"]
[WhiteElo "2308"]
[BlackElo "1587"]
[Annotator "ChessBase"]
[PlyCount "72"]
[EventDate "2024.09.05"]
[EventType "team-tourn"]
[EventCountry "HUN"]
[SourceTitle "playchess.com"]
[Source "ChessBase"]
[SourceQuality "1"]
[WhiteTeam "Costa Rica"]
[BlackTeam "Antigua and Barbuda"]
[WhiteTeamCountry "CRI"]
[TimeControl "40/5400+30:1800+30"]

1. Nf3 Nf6 2. c4 e6 3. g3 g6 4. b3 Bg7 5. Bb2 O-O 6. Bg2 d6 7. d4 Nbd7 8. O-O Re8 9. e3 e5 10. dxe5 dxe5 11. Nxe5 Rb8 12. Nxd7 Bxd7 13. Nc3 a6 14. a4 Qe7 15. Ra2 Bc6 16. Nd5 Bxd5 17. cxd5 a5 18. Qa1 h5 19. h3 b5 20. Rc1 bxa4 21. Rc6 axb3 22. Ra4 Rb6 23. Rf4 Rxc6 24. dxc6 Rb8 25. Qxa5 Ne8 26. Qa1 Bxb2 27. Qxb2 Ng7 28. Bd5 Ne6 29. Re4 Qd6 30. Bxb3 Kh7 31. Qf6 Qxc6 32. Qxf7+ Ng7 33. Re7 Qc3 34. Bc2 Rb6 35. Rxc7 Qb2 36. Rc5 Kh6 1-0

[Event "45th FIDE Olympiad 2024"]
[Site "Budapest"]
[Date "2024.09.11"]
[Round "1.46"]
[White "Loay, Sameer"]
[Black "Abasov, Nijat"]
[Result "0-1"]
[ECO "A08"]
[WhiteElo "2194"]
[BlackElo "2626"]
[Annotator "TA"]
[PlyCount "100"]
[EventDate "2024.09.05"]
[EventType "team-tourn"]
[EventCountry "HUN"]
[SourceTitle "playchess.com"]
[Source "ChessBase"]
[SourceQuality "1"]
[WhiteTeam "Jordan"]
[BlackTeam "Azerbaijan"]
[WhiteTeamCountry "JOR"]
[BlackTeamCountry "AZE"]
[TimeControl "40/5400+30:1800+30"]

{[%evp 14,100,-24,-32,-24,-22,-28,-29,-36,-43,-41,-56,-59,-56,-58,-83,-45,-63,-43,-34,-40,-56,-8,-8,-2,-17,-6,-37,-35,-41,-12,-23,0,-33,-46,-96,-66,-130,-143,-140,-121,-291,-283,-320,-322,-314,-249,-252,-260,-252,-251,-226,-258,-243,-204,-216,-206,-214,-214,-215,-216,-228,-221,-221,-233,-222,-196,-231,-211,-429,-411,-441,-433,-395,-367,-428,-444,-493,-445,-6095,-6096,-5968,-5968,-5715,-5620,-5057,-4614,-1561,-1056]} 1. Nf3 {[%emt 0:00:04]} c5 {[%emt 0:00:06]} 2. g3 {[%emt 0:00:06]} Nc6 {[%emt 0:00:06]} 3. Bg2 {[%emt 0:00:05]} e5 {[%emt 0:00:15]} 4. O-O {[%emt 0:00:10]} d5 {[%emt 0:00:34]} 5. d3 {[%emt 0:00:04]} Nf6 {[%emt 0:00:09]} 6. e4 {[%emt 0:01:20]} d4 {[%emt 0:00:14]} 7. Na3 {[%emt 0:01:40]} Bd6 {[%emt 0:00:11]} 8. Nc4 {[%emt 0:00:58]} Bc7 {[%emt 0:00:22]} 9. a4 {[%emt 0:01:04]} O-O {[%emt 0:00:36]} 10. b3 {[%emt 0:01:44]} Rb8 {[%emt 0:03:44] Black has an edge.} 11. Bd2 {[%emt 0:00:07]} b6 {[%emt 0:02:09]} 12. Nh4 {[%emt 0:03:00]} a6 {[%emt 0:04:13]} 13. Qe1 {[%emt 0:04:31]} Re8 {[%emt 0:04:21]} 14. h3 {[%emt 0:05:50]} Bd7 {[%emt 0:12:08]} 15. Nf5 {[%emt 0:15:15]} b5 {[%emt 0:02:41]} 16. axb5 {[%emt 0:02:11]} axb5 {[%emt 0:00:10]} 17. Na5 {[%emt 0:01:06]} Nxa5 {[%emt 0:13:37]} (17... Ne7 $15) 18. Bxa5 $11 {[%emt 0:00:58]} Ra8 {[%emt 0:07:08]} 19. Bd2 {[%emt 0:03:30]} (19. Bxc7 $5 Qxc7 20. Qd2 $14) 19... Re6 {[%emt 0:05:24]} 20. f4 {[%emt 0:12:20]} Rea6 $36 {[%emt 0:04:34][%mdl 2048] Inhibits b4. Black is more active.} 21. Rc1 {[%emt 0:03:34]} exf4 {[%emt 0:09:33]} 22. Bxf4 {[%emt 0:13:38]} Bxf5 {[%emt 0:00:29]} 23. Bxc7 {[%emt 0:06:20]} (23. exf5 $5 R8a7 (23... Bxf4 24. Rxf4 Rb8 25. Qe5 $17) 24. Bg5 $17) 23... Qxc7 {[%emt 0:00:07]} 24. Rxf5 {[%emt 0:00:03]} ({Better is} 24. exf5 $15 Re8 25. Qf2) 24... Nd7 {[%emt 0:00:28]} 25. Qf2 {[%emt 0:02:07]} (25. g4 $15) 25... Ne5 $17 {[%emt 0:01:09]} 26. Rf1 {[%emt 0:09:55][%cal Of5e5] [#] Strongly threatening Rxe5!} Re8 {[%emt 0:00:48]} 27. b4 $2 {[%emt 0:01:31] This move loses the game for White.} g6 $19 {[%emt 0:01:26]} (27... cxb4 28. Qxd4 b3 29. cxb3 $19) 28. Rf4 {[%emt 0:01:43]} cxb4 {[%emt 0:01:19]} 29. Qxd4 {[%emt 0:01:50]} Qxc2 {[%emt 0:05:35] White must now prevent ...b3.} 30. Qd5 {[%emt 0:02:20]} Qxd3 {[%emt 0:00:55]} 31. Qxd3 {[%emt 0:01:05]} Nxd3 {[%emt 0:00:09]} 32. Rxf7 {[%emt 0:00:03]} b3 {[%emt 0:01:31] aiming for ...b2.} 33. Rd7 {[%emt 0:00:10]} Ne5 {[%emt 0:03:08]} 34. Rb7 {[%emt 0:00:51]} b2 {[%emt 0:08:45]} 35. Rxb5 {[%emt 0:00:35] [#]} Nc4 {[%emt 0:00:05] Hoping for ...Ra1.} 36. Rb1 {[%emt 0:00:36]} Na3 {[%emt 0:00:29][%csl LRb1,LRb5]} ({And not} 36... Ra1 37. R5xb2 Rea8 38. Rb4 $14) 37. R5xb2 {[%emt 0:00:26]} Nxb1 {[%emt 0:00:06]} 38. Rxb1 {[%emt 0:00:02][%mdl 4096] Endgame. KRR-KRB} Ra3 {[%emt 0:00:34] Repels Bf3} 39. g4 {[%emt 0:03:53]} Ra2 {[%emt 0:01:18]} 40. Re1 {[%emt 0:02:49]} Kg7 {[%emt 0:01:24]} 41. Bf1 $2 {[%emt 0:30:36]} (41. g5 {might work better.}) 41... Kf6 {[%emt 0:31:33]} 42. Bb5 {[%emt 0:00:00]} Re5 {[%emt 0:00:00]} 43. Bc4 {[%emt 0:00:00]} Rc2 {[%emt 0:00:00]} 44. Bd5 {[%emt 0:00:00]} Kg5 {[%emt 0:00:00] Black is clearly winning.} 45. Rf1 {[%emt 0:00:00]} Re7 {[%emt 0:00:00]} ({But not} 45... Kh4 46. Rf2 Rc3 47. Bb7 $19) 46. Rf7 {[%emt 0:00:00]} (46. Rf3 $142) 46... Rxf7 {[%emt 0:00:00]} 47. Bxf7 {[%emt 0:00:00]} Kf4 {[%emt 0:00:00][%cal Of4g3] ( -> ...Kg3!)} 48. Bg8 {[%emt 0:00:00]} Rc8 {[%emt 0:00:00]} (48... Kxe4 49. Bxh7 Rc6 50. h4 $19) 49. Bd5 {[%emt 0:00:00]} Kg3 {[%emt 0:00:00][%cal Rc8c1]} 50. Kf1 {[%emt 0:00:00]} Kxh3 {[%emt 0:00:00] Weighted Error Value: White=0.39/Black=0.09 (flawless) .  Loses game:     	White=1     	---        Mistake:       	White=4     	Black=1      Inaccurate:     	White=2     	Black=3      OK:         	White=18    	Black=18     Best:        	---       	Black=3} 0-1

[Event "45th FIDE Olympiad 2024"]
[Site "Budapest"]
[Date "2024.09.11"]
[Round "1.46"]
[White "Matthew, Bailey"]
[Black "Jimenez Garcia, Emmanuel"]
[Result "0-1"]
[ECO "B10"]
[WhiteElo "1548"]
[BlackElo "2352"]
[Annotator "ChessBase"]
[PlyCount "76"]
[EventDate "2024.09.05"]
[EventType "team-tourn"]
[EventCountry "HUN"]
[SourceTitle "playchess.com"]
[Source "ChessBase"]
[SourceQuality "1"]
[WhiteTeam "Antigua and Barbuda"]
[BlackTeam "Costa Rica"]
[BlackTeamCountry "CRI"]
[TimeControl "40/5400+30:1800+30"]

1. e4 c6 2. b3 d5 3. Bb2 e6 4. e5 c5 5. Nf3 Ne7 6. c3 Bd7 7. d4 cxd4 8. cxd4 Nbc6 9. Be2 Ng6 10. g3 f6 11. O-O fxe5 12. Nxe5 Ncxe5 13. dxe5 Bc5 14. Nd2 O-O 15. Nf3 Qb6 16. Qd3 Rf5 17. Rac1 Raf8 18. a3 Rxf3 19. Bxf3 Bb5 20. Qc3 Bxf1 21. Rxf1 Bd4 22. Qxd4 Rxf3 23. Qa4 Qxb3 24. Qe8+ Nf8 25. Bc1 Rf7 26. Qb8 b6 27. h4 d4 28. h5 h6 29. Qa8 Qc2 30. Bf4 Qe2 31. Qc6 Qxh5 32. Qe4 Ng6 33. Qxd4 Nxf4 34. gxf4 Qg4+ 35. Kh2 Qh4+ 36. Kg2 Rxf4 37. Qe3 Qg5+ 38. Qg3 Rg4 0-1

[Event "45th FIDE Olympiad 2024"]
[Site "Budapest"]
[Date "2024.09.11"]
[Round "1.47"]
[White "Mamedov, Rauf"]
[Black "Saif, Malek"]
[Result "1-0"]
[ECO "C77"]
[WhiteElo "2637"]
[BlackElo "2162"]
[Annotator "RC"]
[PlyCount "77"]
[EventDate "2024.09.05"]
[EventType "team-tourn"]
[EventCountry "HUN"]
[SourceTitle "playchess.com"]
[Source "ChessBase"]
[SourceQuality "1"]
[WhiteTeam "Azerbaijan"]
[BlackTeam "Jordan"]
[WhiteTeamCountry "AZE"]
[BlackTeamCountry "JOR"]
[TimeControl "40/5400+30:1800+30"]

1. e4 {[%emt 0:00:09]} e5 {[%emt 0:00:11]} 2. Nf3 {[%emt 0:00:07]} Nc6 {[%emt 0:00:05]} 3. Bb5 {[%emt 0:00:12]} a6 {[%emt 0:00:07]} 4. Ba4 {[%emt 0:00:06]} Nf6 {[%emt 0:00:08]} 5. Nc3 {[%emt 0:00:04]} Bc5 {[%emt 0:05:17]} 6. O-O {[%emt 0:00:29]} b5 {[%emt 0:08:38]} 7. Bb3 {[%emt 0:00:08]} d6 {[%emt 0:00:05]} 8. Nd5 {[%emt 0:06:55]} Bg4 {[%emt 0:16:13]} 9. c3 {[%emt 0:02:10]} Ba7 {[%emt 0:16:00]} 10. h3 {[%emt 0:04:43]} Bh5 {[%emt 0:01:10]} 11. Nxf6+ {[%emt 0:19:18]} gxf6 {[%emt 0:03:17]} 12. g4 {[%emt 0:02:06]} Qd7 {[%emt 0:05:06]} 13. Nh4 {[%emt 0:05:19]} Bg6 {[%emt 0:05:25]} 14. Qf3 {[%emt 0:03:04]} Ke7 {[%emt 0:01:25]} 15. d3 {[%emt 0:01:07]} h6 {[%emt 0:04:24]} 16. a4 {[%emt 0:01:18]} b4 {[%emt 0:01:56]} 17. a5 {[%emt 0:01:54]} Rag8 {[%emt 0:05:07]} 18. Be3 {[%emt 0:04:23]} h5 {[%emt 0:12:33]} 19. g5 {[%emt 0:00:14]} fxg5 {[%emt 0:00:16]} 20. Nxg6+ {[%emt 0:00:29]} fxg6 {[%emt 0:02:55]} 21. Qf7+ {[%emt 0:06:11]} Kd8 {[%emt 0:00:12]} 22. Qxd7+ {[%emt 0:00:25]} Kxd7 {[%emt 0:00:03]} 23. Ba4 {[%emt 0:00:05]} Bxe3 {[%emt 0:07:28]} 24. fxe3 {[%emt 0:00:38]} Rg7 {[%emt 0:03:09]} 25. d4 {[%emt 0:00:59]} bxc3 {[%emt 0:01:06]} 26. bxc3 {[%emt 0:00:14]} g4 {[%emt 0:00:29]} 27. hxg4 {[%emt 0:09:04]} hxg4 {[%emt 0:00:01]} 28. Kg2 {[%emt 0:00:20]} Rh3 {[%emt 0:01:00]} 29. Rae1 {[%emt 0:00:04]} exd4 {[%emt 0:00:39]} 30. cxd4 {[%emt 0:00:04]} Re7 {[%emt 0:00:06]} 31. Rc1 {[%emt 0:00:34]} Rxe3 {[%emt 0:00:35]} 32. Bxc6+ {[%emt 0:00:39]} Ke6 {[%emt 0:00:03]} 33. Bb7 {[%emt 0:05:28]} Rh7 {[%emt 0:01:15]} 34. Bc8+ {[%emt 0:00:03]} Ke7 {[%emt 0:00:33]} 35. Rxc7+ {[%emt 0:00:06]} Kd8 {[%emt 0:00:16]} 36. Rxh7 {[%emt 0:00:05]} Re2+ {[%emt 0:00:06]} 37. Kg1 {[%emt 0:00:08]} Ke8 {[%emt 0:00:25]} 38. Bd7+ {[%emt 0:00:08]} Kd8 {[%emt 0:00:13]} 39. Rf8+ {[%emt 0:00:03]} 1-0

[Event "45th FIDE Olympiad 2024"]
[Site "Budapest"]
[Date "2024.09.11"]
[Round "1.47"]
[White "Cabezas Solano, David Alejandro"]
[Black "Farquhar, Abner"]
[Result "0-1"]
[ECO "D36"]
[WhiteElo "2248"]
[BlackElo "1678"]
[Annotator "ChessBase"]
[PlyCount "102"]
[EventDate "2024.09.05"]
[EventType "team-tourn"]
[EventCountry "HUN"]
[SourceTitle "playchess.com"]
[Source "ChessBase"]
[SourceQuality "1"]
[WhiteTeam "Costa Rica"]
[BlackTeam "Antigua and Barbuda"]
[WhiteTeamCountry "CRI"]
[TimeControl "40/5400+30:1800+30"]

1. d4 d5 2. c4 e6 3. Nc3 Nf6 4. cxd5 exd5 5. Bg5 c6 6. e3 h6 7. Bh4 Be7 8. Qc2 O-O 9. Bd3 Re8 10. Nge2 Ne4 11. Bxe7 Qxe7 12. Bxe4 dxe4 13. O-O Na6 14. Ng3 f5 15. f3 Nb4 16. Qb3+ Be6 17. Nxf5 Bxb3 18. Nxe7+ Rxe7 19. axb3 exf3 20. Ra4 fxg2 21. Rd1 Nc2 22. e4 Rf8 23. Raa1 Ref7 24. Kxg2 Rf2+ 25. Kg1 Nxa1 26. Rxa1 Rxb2 27. d5 cxd5 28. exd5 Rxb3 29. Ne4 Rd8 30. Rxa7 Rxd5 31. Kf2 Rh5 32. Kg2 Rb2+ 33. Kf3 Rhxh2 34. Nd6 b5 35. Nf5 Rhf2+ 36. Ke4 Rxf5 37. Kxf5 b4 38. Kg6 Rg2+ 39. Kf5 b3 40. Rb7 b2 41. Rb8+ Kh7 42. Rb7 h5 43. Rb4 g6+ 44. Kf6 Kh6 45. Rb8 Rf2+ 46. Ke5 h4 47. Ke4 Kg5 48. Ke3 Rg2 49. Kf3 h3 50. Rb5+ Kh6 51. Rb8 Rc2 0-1